Cogmind - Beta 16.1 @@@ ROGUE MODE // 2026.02.24 @ 20:49:00 Player: TheSkyeDoctor Result: Destroyed by G-47 Trooper with Particle Gun Performance ------------- Evolutions (2) 1000 Regions Visited (3) 600 Robots Destroyed (33) 165 Value Destroyed (868) 868 Prototype IDs (0) 0 Alien Tech Used (0) 0 Bonus (0) 0 TOTAL SCORE: 2633 Bonus ------- None Cogmind --------- Core Integrity 0/550 Matter 202/300 Energy 100/100 System Corruption 10% Temperature Cool (67) Movement Treading (240) Ox1 Location -8/Materials Parts ------- > --- POWER (1) -------- (None) > --- PROPULSION (2) --- Improved Treads Wheel > --- UTILITY (6) ------ Large Storage Unit Hardened Light Armor Plating > --- WEAPON (2) ------- Light Assault Rifle > --- INVENTORY (15) --- Ion Engine Compact Wheel Structural Scanner Seismic Detector Peak State ------------ > --- POWER ------------ Deuterium Engine > --- PROPULSION ------- Light Treads Light Treads > --- UTILITY ---------- Large Storage Unit Seismic Detector Transport Network Coupler Hardened Light Armor Plating > --- WEAPON ----------- Beam Rifle Improved Light Cannon > --- INVENTORY -------- Ion Engine Light Ion Engine Wheel Compact Wheel Structural Scanner Seismic Detector Medium Laser Light Assault Rifle Mining Laser [Rating: 14] Favorites ----------- Power Ion Engine Engine Ion Engine Propulsion Light Treads Treads Light Treads Wheel Wheel Utility Seismic Detector Device Seismic Detector Storage Large Storage Unit Processor Transport Network Coupler Protection Hardened Light Armor Plating Weapon Medium Laser Energy Gun Medium Laser Ballistic Gun Light Assault Rifle Ballistic Cannon Improved Light Cannon Launcher Grenade Launcher Special Weapon Mining Laser Build | -11 -10 -9 -8 ------- Run | Yrd Mat Mat Mat Slots Evolved 4 | . . 2 2 Power . | . . . . Propulsion . | . . . . Utility 4 | . . 2 2 Weapon . | . . . . Parts Attached 21 | 7 3 5 6 Power 3 | 1 . 1 1 Engine 3 | 1 . 1 1 Core . | . . . . Reactor . | . . . . Propulsion 5 | 2 . . 3 Treads 4 | 2 . . 2 Leg . | . . . . Wheel 1 | . . . 1 Hover . | . . . . Flight . | . . . . Utility 6 | 2 1 2 1 Device 1 | 1 . . . Storage 2 | 1 1 . . Processor 1 | . . 1 . Hackware . | . . . . Protection 2 | . . 1 1 Artifact . | . . . . Weapon 7 | 2 2 2 1 Energy Gun 2 | 1 . 1 . Energy Cannon . | . . . . Ballistic Gun 1 | 1 . . . Ballistic Cannon 1 | . . 1 . Launcher 2 | . 1 . 1 Special Weapon 1 | . 1 . . Impact Weapon . | . . . . Slashing Weapon . | . . . . Piercing Weapon . | . . . . Special Melee Weapon . | . . . . Unidentified Prototypes . | . . . . Parts Lost 14 | . . 2 12 Power 2 | . . 1 1 Propulsion 3 | . . . 3 Utility 3 | . . . 3 Weapon 6 | . . 1 5 Highest Loss Streak 12 | . . 2 12 To Critical Strikes 1 | . . . 1 Average Backups 6 | 3 5 8 7 Power . | . 1 1 1 Propulsion 2 | 2 2 2 2 Utility 1 | . 1 2 2 Weapon 1 | . 1 2 2 Tool/Special . | . . . . Unused Backups 4 | . . . 4 Power 1 | . . . 1 Propulsion 1 | . . . 1 Utility 2 | . . . 2 Weapon . | . . . . Tool/Special . | . . . . Average Slot Usage (%) 84 | . 100 76 68 Engine 10 | . 14 10 7 Treads 22 | . 28 22 14 Device 11 | . 14 11 7 Storage 11 | . 14 11 9 Processor 2 | . . . 7 Protection 2 | . . 1 7 Energy Gun 11 | . 14 11 7 Ballistic Gun 2 | . 4 . 1 Ballistic Cannon 2 | . . . 6 Launcher 3 | . 5 5 . Special Weapon 2 | . 4 3 . Peak Build Rating 14 | 7 7 12 14 Average Rating 8 | 4 7 7 11 On Entrance 6 | . 7 7 12 Avg Prop Armor Cover (%) 8 | . . . 8 Naked Turns . | . . . . Heaviest Build 42 | 14 31 38 42 Greatest Support 40 | 40 40 40 40 Greatest Overweight (x) 2 | 2 . . 2 Average Overweight (x) . | . . . . Largest Inventory Capacity 15 | 8 15 15 15 Average Capacity 13 | 7 12 15 15 Most Carried 9 | 5 8 9 9 Average Carried 6 | 3 5 8 7 Final Capacity 15 | 8 15 15 15 Final Carried 8 | 3 8 8 4 Class Distribution -------------------- 100% | Mutant Dominant Class ---------------- Mutant | -10/Materials Mutant | -9/Materials Mutant | -8/Materials Resources | -11 -10 -9 -8 ----------- Run | Yrd Mat Mat Mat Matter Collected 637 | 277 145 42 173 Remotely . | . . . . Salvage Created 973 | 125 309 59 480 Parts 48 | 6 19 3 20 Haulers Intercepted 1 | . 1 . . Recyclers Shooed 2 | 1 . . 1 Parts Field Recycled . | . . . . Retrieved Matter . | . . . . Parts Self-Destructed . | . . . . Prevented . | . . . . Parts Restored . | . . . . Kills | -11 -10 -9 -8 ------- Run | Yrd Mat Mat Mat Combat Hostiles Destroyed 23 | . 8 2 13 Guns 9 | . . 2 7 Cannons 3 | . . . 3 AOE 10 | . 7 . 3 Classes Destroyed 8 | 2 3 . 3 Worker 3 | . 2 . 1 Tunneler 2 | 2 . . . Hauler 1 | . 1 . . Recycler 4 | 1 . . 3 Swarmer 5 | . . . 5 Grunt 14 | . 8 2 4 Brawler 1 | . . . 1 Sentry 3 | . . . 3 Best Kill Streak 6 | 2 4 2 6 Combat Bots Only 4 | . 3 2 4 Max Kills in Single Turn 4 | 1 2 1 4 Gunslinging . | . . . . Exploded 2 | . 2 . 2 Melee . | . . . . Uniques/NPCs Destroyed . | . . . . Combat | -11 -10 -9 -8 -------- Run | Yrd Mat Mat Mat Hostile Shots Fired 208 | . 32 14 162 Missed 56 | . 8 5 43 Hits 152 | . 24 9 119 Melee 7 | . . . 7 Projectile 145 | . 24 9 112 Critical Strikes 16 | . . . 16 Damage Taken 2465 | . 341 108 2016 Core 634 | . 68 15 551 Absorbed by Shields . | . . . . Core Remaining (%) 89 | 100 72 96 . Volleys Fired 99 | 7 31 15 46 Largest 2 | 2 2 2 2 Hottest 156 | 70 150 156 150 Shots Fired 153 | 14 47 27 65 Gun 98 | 14 27 15 42 Cannon 18 | . . . 18 Launcher 17 | . 10 3 4 Special 20 | . 10 9 1 Kinetic 44 | 7 . . 37 Thermal 92 | 7 37 24 24 Explosive 17 | . 10 3 4 Electromagnetic . | . . . . Robot Hit Streak 21 | 4 7 14 21 Robot Miss Streak 4 | 1 2 . 4 Penetration Max . | . . . . Secondary Targets . | . . . . Shots Hit Robots 79 | 9 24 8 38 Core Hits 58 | 4 18 4 32 Critical Kills . | . . . . Critical Parts Destroyed 1 | . . . 1 Critical Strikes 7 | 2 3 . 2 Burn 5 | 2 3 . . Destroy 1 | . . . 1 Blast 1 | . . . 1 Melee Attacks . | . . . . Impact . | . . . . Slashing . | . . . . Piercing . | . . . . Sneak Attacks . | . . . . Combat Hostiles . | . . . . Follow-up Attacks . | . . . . Damage Inflicted 2867 | 119 785 196 1767 Guns 776 | 119 212 84 361 Cannons 221 | . . . 221 Explosions 1870 | . 573 112 1185 Melee . | . . . . Ramming . | . . . . Kinetic 410 | 31 . . 379 Thermal 1370 | 88 212 84 986 Explosive 1087 | . 573 112 402 Electromagnetic . | . . . . Impact . | . . . . Slashing . | . . . . Piercing . | . . . . Highest Corruption 10 | . . . 10 Average Corruption 9 | . . . 9 Corruption Purged . | . . . . Corruption Blocked . | . . . . Effects 2 | . . . 2 Message Errors 1 | . . . 1 Matter Fused 1 | . . . 1 Overload Shots . | . . . . Overflow Damage 179 | . . . 179 Projectiles . | . . . . Explosions 179 | . . . 179 Melee . | . . . . Knockbacks 2 | . . . 2 Impact . | . . . . Kinetic 1 | . . . 1 Secondary 1 | . . . 1 Self-Inflicted Damage 275 | . 39 9 227 Shots 6 | . 3 1 2 Rammed . | . . . . Targets Rammed . | . . . . Kicked . | . . . . Crushed . | . . . . Highest Temperature 258 | 50 200 186 258 Average Temperature 81 | 25 68 75 111 Received Heat Transfer 1065 | . 165 54 846 Effects 2 | . . . 2 Interference 2 | . . . 2 Siege Activations . | . . . . Martial Activations . | . . . . Shielding Activations . | . . . . Robots Disrupted . | . . . . Combat Hostiles . | . . . . Robots Corrupted . | . . . . Combat Hostiles . | . . . . Parts Fried . | . . . . Impact Corruptions . | . . . . Robots Melted 1 | . 1 . . Combat Hostiles 1 | . 1 . . Parts Melted 2 | 2 . . . Heat Transferred 2548 | 407 851 222 1068 Parts Sabotaged . | . . . . Parts Stolen . | . . . . Parts Stripped . | . . . . Power Chain Reactions . | . . . . Alert | -11 -10 -9 -8 ------- Run | Yrd Mat Mat Mat Maximum Alert Level 1 | . . . 1 Low Security (%) 99 | 100 100 100 97 Level 1 . | . . . 2 Level 2 . | . . . . Level 3 . | . . . . Level 4 . | . . . . Level 5 . | . . . . High Security . | . . . . Max Security . | . . . . Peak Influence 205 | 5 144 131 205 Initial 60 | . . 60 38 Average 50 | . 40 42 89 Influence Increases 886 | 15 285 161 425 Destroy 0b10 Robot/C 460 | . 160 40 260 Destroy 0b10 Robot/NC 50 | 15 15 . 20 Destroy Leader 122 | . 42 10 70 Successful Hack 10 | . 5 5 . Disable Machine 75 | . . 45 30 Destroy Structure 169 | . 63 61 45 Influence Decreases 711 | 15 141 214 341 Entered New Map 137 | . . 84 53 Time Decay 444 | 15 141 120 168 Lost Part 130 | . . 10 120 Squads Dispatched 9 | . 3 1 5 Investigation 2 | . 2 . . Extermination . | . . . . Reinforcement 4 | . 1 1 2 Assault . | . . . . Garrison 3 | . . . 3 Intercept . | . . . . Searches Triggered . | . . . . Construction Impeded 1 | . . . 1 Haulers Reinforced . | . . . . Active Scanning Responses . | . . . . Cargo Convoy Interrupts . | . . . . Stealth | -11 -10 -9 -8 --------- Run | Yrd Mat Mat Mat Distress Signals 4 | . 1 . 3 Communications Jammed . | . . . . Distress Signals . | . . . . Times Spotted 38 | . 13 3 22 Peak Tracking Total 9 | . 4 2 9 Tactical Retreats . | . . . . Traps | -11 -10 -9 -8 ------- Run | Yrd Mat Mat Mat Traps Triggered 1 | . 1 . . Indirectly . | . . . . Trap Hack Attempts . | . . . . Triggered . | . . . . Disarmed . | . . . . Reprogrammed . | . . . . Reused . | . . . . Traps Extracted . | . . . . Installed . | . . . . Triggered . | . . . . Machines | -11 -10 -9 -8 ---------- Run | Yrd Mat Mat Mat Machines Disabled 5 | . . 3 2 Max in Single Turn 3 | . . 3 2 Machines Repaired . | . . . . Machines Dismantled . | . . . . Machines Sabotaged . | . . . . Overloaded Fab Kills . | . . . . Hacking | -11 -10 -9 -8 --------- Run | Yrd Mat Mat Mat Machines Accessed 3 | . 1 2 . Terminals 3 | . 1 2 . Fabricators . | . . . . Repair Stations . | . . . . Recycling Units . | . . . . Scanalyzers . | . . . . Garrison Access . | . . . . Total Hacks 9 | . 3 6 . Successful 2 | . 1 1 . Failed 7 | . 2 5 . Catastrophic 3 | . . 3 . Database Lockouts . | . . . . Manual 8 | . 3 5 . Terminals 9 | . 3 6 . Fabricators . | . . . . Repair Stations . | . . . . Recycling Units . | . . . . Scanalyzers . | . . . . Garrison Access . | . . . . Terminal Hacks 2 | . 1 1 . Zone Layout 2 | . 1 1 . Fabricator Hacks . | . . . . Repair Station Hacks . | . . . . Recycling Unit Hacks . | . . . . Scanalyzer . | . . . . Garrison Access Hacks . | . . . . Unauthorized Hacks . | . . . . Terminals . | . . . . Fabricators . | . . . . Repair Stations . | . . . . Recycling Units . | . . . . Scanalyzers . | . . . . Garrison Access . | . . . . Data Cores Recovered . | . . . . Used . | . . . . Hacking Detections 3 | . 1 2 . Full Trace Events 1 | . 1 . . Feedback Events . | . . . . Feedback Blocked . | . . . . Robot Schematics Acquired . | . . . . Robots Built . | . . . . Authchips . | . . . . Time . | . . . . Total Robot Build Rating . | . . . . Part Schematics Acquired . | . . . . Parts Built . | . . . . Authchips . | . . . . Time . | . . . . Total Part Build Rating . | . . . . Part Studies Acquired . | . . . . Parts Repaired . | . . . . Time . | . . . . Parts Recycled . | . . . . Recycled Matter . | . . . . Retrieved Matter . | . . . . Retrieved Components . | . . . . Parts Scanalyzed . | . . . . Part Schematics Acquired . | . . . . Parts Damaged . | . . . . Bothacking | -11 -10 -9 -8 ------------ Run | Yrd Mat Mat Mat Used RIF Installer . | . . . . Robots Hacked . | . . . . Non-combat . | . . . . Combat . | . . . . Robot Hacks Applied . | . . . . Relay Couplers Released . | . . . . Fabnet Peak Effective % . | . . . . Robots Rewired . | . . . . Allies Hacked . | . . . . Hacks Repelled . | . . . . Allies | -11 -10 -9 -8 -------- Run | Yrd Mat Mat Mat Total Allies . | . . . . Largest Group . | . . . . Highest-Rated Group . | . . . . Highest-Rated Ally . | . . . . Total Orders . | . . . . Ally Attacks . | . . . . Total Damage . | . . . . Kills . | . . . . Allies Corrupted . | . . . . Allies Melted . | . . . . Intel | -11 -10 -9 -8 ------- Run | Yrd Mat Mat Mat Active Infowar (turns) 1138 | 19 515 338 266 Seismic 1136 | 19 515 338 264 T.N.C. 291 | . . 25 266 Robot Analysis Total . | . . . . Derelict Logs Recovered . | . . . . Drone Launches . | . . . . Drone Recoveries . | . . . . Exploration | -11 -10 -9 -8 ------------- Run | Yrd Mat Mat Mat Turns Passed 1314 | 112 515 338 349 Spaces Moved 573 | 60 247 168 98 Core 24 | 24 . . . Treads 545 | 36 247 168 94 Legs . | . . . . Wheels 4 | . . . 4 Hover . | . . . . Flight . | . . . . Fastest Speed 50 | 50 160 160 110 Average Speed 165 | 122 160 160 215 Slowest Speed 240 | 160 160 160 240 Overloaded Moves . | . . . . Propulsion Burnouts . | . . . . Robots Hopped . | . . . . Potential Cave-ins . | . . . . Cave-ins Triggered . | . . . . Exploration Rate (%) 17 | 4 42 12 11 Regions Visited 3 Branch Regions . Pre-discovered Areas . | . . . . Known Exits Taken . | . . . . Unknown Exits Taken 3 | 1 1 1 . Scrap Searched . | . . . . Spaces Dug 13 | . 6 7 . Terrain Destroyed 201 | . 73 70 58 Melee . | . . . . Projectile 22 | . 10 9 3 AOE 179 | . 63 61 55 Terrain Rammed . | . . . . Walls Destroyed . | . . . . Machines Disabled . | . . . . Actions | -11 -10 -9 -8 --------- Run | Yrd Mat Mat Mat Total 742 | 84 298 189 171 Wait 29 | 4 9 . 16 Move 570 | 59 246 167 98 Hop . | . . . . Pick Up 13 | 7 6 . . Fast Attach 9 | 3 . 3 3 Attach 10 | 4 . 1 5 Detach . | . . . . Swap 10 | . 5 3 2 Drop 2 | . 1 . 1 Fire 99 | 7 31 15 46 Melee . | . . . . Ram . | . . . . Kick . | . . . . Crush . | . . . . Escape Stasis . | . . . . Rewire . | . . . . Trap . | . . . . Miscellaneous . | . . . . Route ------- -11/Scrapyard -10/Materials -9/Materials -8/Materials History --------- Turn | Location | Event 10 | -11/Scrapyard | Discovered new exit (range 16) 113 | -11/Scrapyard | Entered Materials 335 | -10/Materials | Build established: Mutant 520 | -10/Materials | Discovered new exit (range 16) 628 | -10/Materials | Entered another Materials area 628 | -9/Materials | Evolved 2 slots: Utility x2 920 | -9/Materials | Discovered new exit (range 11) 966 | -9/Materials | Entered another Materials area 966 | -8/Materials | Evolved 2 slots: Utility x2 1048 | -8/Materials | Garrison activated, responded to threat 1242 | -8/Materials | System corruption reached 10% 1245 | -8/Materials | Core integrity fell below 50% 1264 | -8/Materials | Core integrity fell below 20% 1292 | -8/Materials | Lost 12 parts (1p3n3u5w) 1315 | -8/Materials | Destroyed by G-47 Trooper with Particle Gun Last Messages --------------- U-05 Engineer builds a Wall. K-01 Serf collects debris. U-05 Engineer lays Concrete. U-05 Engineer builds a Door. G-47 Trooper suffers critical hit (Destroy). Destroyed Lgt. Nuclear Core. U-05 Engineer builds a Wall. K-01 Serf collects debris. Critical hit (Burn: +37). Penetrated by Slug. Critical hit (Burn: +37). U-05 Engineer lays Concrete. K-01 Serf collects debris. The unstable cave ceiling collapses. U-05 Engineer lays Concrete. Critical hit (Burn: +37). U-05 Engineer lays Concrete. K-01 Serf collects debris. U-05 Engineer builds a Wall. Penetrated by Slug. Map ----- +----------------------------------------------------+ | ?????????????????????????????????????????????????? | | ???????????????????? ???????????????????????????? | | ???????????????????? ???????????????????????????? | | ???????????????????? "??????????????????????????? | | ???????????????????? "????? ???????????????????? | | ???????????????????# "???? #??????????????????? | | ???????????????????+ ??? #??????????????????? | | #########??????????# ? #??????????????????? | | #??????????# """ #??????????????????? | | #?????????? """ #??????????????????? | | #?????????# """ #???????????????????? | | #??????#### #???????????????????? | | % #??????# # # #???????????????????? | | %% #??????# # #???????????????????? | | #??????# # # % ?????????????????????? | | ######### #####?#???????????????????? | | / %# # #######?????????????? | | +################ ##+## ;# ??????????????? | | #????????????# # u% ;; #???????????????????? | | #????????????# ;# #???????????????????? | | ?????????????# % k " #???????????????????? | | ?????????????## ;# #???????????????????? | | ??????????????#; gg ;#?????????????????????? | | ??????????????#; hgg# #????????????????? | | ??????????????## ! #?! #????????????????? | | ???????????????# @#?? +????????????????? | | ???????????????##;########????"#????????????????? | | ?????????????????###????????????#????????????????? | | ?????????????????????????????????????????????????? | | ?????????????????????????????????????????????????? | | ?????????????????????????????????????????????????? | | ?????????????????????????????????????????????????? | | ?????????????????????????????????????????????????? | | ?????????????????????????????????????????????????? | | ?????????????????????????????????????????????????? | | ?????????????????????????????????????????????????? | | ?????????????????????????????????????????????????? | | ?????????????????????????????????????????????????? | | ?????????????????????????????????????????????????? | | ?????????????????????????????????????????????????? | | ?????????????????????????????????????????????????? | | ?????????????????????????????????????????????????? | | ?????????????????????????????????????????????????? | | ?????????????????????????????????????????????????? | | ?????????????????????????????????????????????????? | | ?????????????????????????????????????????????????? | | ?????????????????????????????????????????????????? | | ?????????????????????????????????????????????????? | | ?????????????????????????????????????????????????? | | ?????????????????????????????????????????????????? | +----------------------------------------------------+ Best States ------------- Heat Dissipation 31 Energy Generation 14 Energy Capacity 275 Matter Stores 300 Matter Capacity 300 Sight Range 16 Terrain Scan Density 10 Armor Coverage 150 Evasion (%) 50 Recoil Reduction 2 Item Schematics ----------------- None Robot Schematics ------------------ None Fabricated ------------ Nothing Repaired ---------- Nothing Studied --------- None Alien Tech Used ----------------- None Achievements -------------- None Challenges ------------ None Game ------ Seed NullCoolingObliterator Manual? 0 Play Time 00:19:10 Cumulative 39.4 hours Start 2026.02.24 @ 20:32:23 End 2026.02.24 @ 20:49:00 Sessions 1 Manual Loads 0 Difficulty Rogue Special Mode None Game No. 95 Rogue 95 Adventurer 0 Explorer 0 Win Type - Total 0 Types 0/0/0/0/0/0/0/0/0/0 Lore% 29 Gallery% 35 Achievement% 27 Wizard Run 0 Options --------- Layout 1 ASCII 0 Keyboard 1 Movement Numpad Keybinds 0 Fullscreen 1 Font 24/Smallcaps Map View 50x35 Zoom Use 0% Tactical HUD 0 Map Filters NONE Filters NONE Steam 1 RUN: 0400395f-8885-4a66-b47e-97eaab21add1